Workbook

Sheet 暂定采购数量
A1: 东莞市水务集团净水有限公司2024年五金材料及工器具物资采购清单及预算表
A2: 序号 | B2: 物资重要程度 | C2: 物资名称 | D2: 物资类别 | E2: 推荐品牌 | F2: 规格型号 | G2: 石鼓暂定数量 | H2: 樟村暂定数量 | I2: 莞水暂定数量 | J2: 合计暂定数量 | K2: 单位 | L2: 不含税预算综合单价（元） | M2: 石鼓不含税预算金额小计（元） | N2: 樟村不含税预算金额小计（元） | O2: 莞水不含税预算金额小计（元） | P2: 不含税预算金额小计（元） | Q2: 备注
A3: 1 | B3: ▲ | C3: UPVC给水管 | D3: 五金材料 | E3: 联塑/日丰/南亚 | F3: DN20,PN16 | G3: 180 | H3: 10 | I3: 50 | J3: =SUM(G3:I3) -> 240 | K3: 米 | L3: 3.49 | M3: =L3*G3 -> 628.20 | N3: =L3*H3 -> 34.90 | O3: =L3*I3 -> 174.50 | P3: =M3+N3+O3 -> 837.60
A4: 2 | B4: ▲ | C4: UPVC给水管 | D4: 五金材料 | E4: 联塑/日丰/南亚 | F4: DN25,PN16 | G4: 300 | H4: 10 | I4: 50 | J4: =SUM(G4:I4) -> 360 | K4: 米 | L4: 4.51 | M4: =L4*G4 -> 1353.00 | N4: =L4*H4 -> 45.10 | O4: =L4*I4 -> 225.50 | P4: =M4+N4+O4 -> 1623.60
A5: 3 | B5: ▲ | C5: UPVC给水管 | D5: 五金材料 | E5: 联塑/日丰/南亚 | F5: DN32,PN16 | G5: 300 | H5: 10 | I5: 50 | J5: 360 | K5: 米 | L5: 7.23 | M5: 2169.00 | N5: 72.30 | O5: 361.50 | P5: 2602.80
A6: 4 | B6: ▲ | C6: UPVC给水管 | D6: 五金材料 | E6: 联塑/日丰/南亚 | F6: DN40,PN16 | G6: 180 | H6: 10 | I6: 50 | J6: 240 | K6: 米 | L6: 10.84 | M6: 1951.20 | N6: 108.40 | O6: 542.00 | P6: 2601.60
A7: 5 | B7: ▲ | C7: UPVC给水管 | D7: 五金材料 | E7: 联塑/日丰/南亚 | F7: DN50,PN16 | G7: 180 | H7: 10 | I7: 50 | J7: 240 | K7: 米 | L7: 17.16 | M7: 3088.80 | N7: 171.60 | O7: 858.00 | P7: 4118.40
A8: 6 | B8: ▲ | C8: UPVC给水管 | D8: 五金材料 | E8: 联塑/日丰/南亚 | F8: DN63,PN16 | G8: 90 | H8: 10 | I8: 50 | J8: 150 | K8: 米 | L8: 27.11 | M8: 2439.90 | N8: 271.10 | O8: 1355.50 | P8: 4066.50
A9: 7 | B9: ▲ | C9: UPVC给水管 | D9: 五金材料 | E9: 联塑/日丰/南亚 | F9: DN75,PN16 | G9: 60 | H9: 5 | I9: 5 | J9: 70 | K9: 米 | L9: 37.04 | M9: 2222.40 | N9: 185.20 | O9: 185.20 | P9: 2592.80
A10: 8 | B10: ▲ | C10: UPVC给水管 | D10: 五金材料 | E10: 联塑/日丰/南亚 | F10: DN90,PN16 | G10: 60 | H10: 5 | I10: 5 | J10: 70 | K10: 米 | L10: 52.4 | M10: 3144.00 | N10: 262.00 | O10: 262.00 | P10: 3668.00
A11: 9 | B11: ▲ | C11: UPVC给水管 | D11: 五金材料 | E11: 联塑/日丰/南亚 | F11: DN110,PN16 | G11: 120 | H11: 5 | I11: 5 | J11: 130 | K11: 米 | L11: 65.95 | M11: 7914.00 | N11: 329.75 | O11: 329.75 | P11: 8573.50
A12: 10 | B12: ▲ | C12: UPVC给水管 | D12: 五金材料 | E12: 联塑/日丰/南亚 | F12: DN125,PN16 | G12: 36 | H12: 5 | I12: 5 | J12: 46 | K12: 米 | L12: 87.64 | M12: 3155.04 | N12: 438.20 | O12: 438.20 | P12: 4031.44
A13: 11 | B13: ▲ | C13: UPVC给水管 | D13: 五金材料 | E13: 联塑/日丰/南亚 | F13: DN140,PN16 | G13: 24 | H13: 5 | I13: 5 | J13: 34 | K13: 米 | L13: 111.13 | M13: 2667.12 | N13: 555.65 | O13: 555.65 | P13: 3778.42
A14: 12 | B14: ▲ | C14: UPVC给水管 | D14: 五金材料 | E14: 联塑/日丰/南亚 | F14: DN160,PN16 | G14: 24 | H14: 5 | I14: 5 | J14: 34 | K14: 米 | L14: 131.91 | M14: 3165.84 | N14: 659.55 | O14: 659.55 | P14: 4484.94
A15: 13 | B15: ▲ | C15: UPVC给水管 | D15: 五金材料 | E15: 联塑/日丰/南亚 | F15: DN200,PN16 | G15: 12 | H15: 2 | I15: 2 | J15: 16 | K15: 米 | L15: 215.03 | M15: 2580.36 | N15: 430.06 | O15: 430.06 | P15: 3440.48
A16: 14 | B16: ▲ | C16: UPVC给水管 | D16: 五金材料 | E16: 联塑/日丰/南亚 | F16: DN225,PN16 | G16: 12 | H16: 2 | I16: 2 | J16: 16 | K16: 米 | L16: 300.87 | M16: 3610.44 | N16: 601.74 | O16: 601.74 | P16: 4813.92
A17: 15 | B17: ▲ | C17: UPVC给水管 | D17: 五金材料 | E17: 联塑/日丰/南亚 | F17: DN250,PN16 | G17: 12 | H17: 2 | I17: 2 | J17: 16 | K17: 米 | L17: 366.82 | M17: 4401.84 | N17: 733.64 | O17: 733.64 | P17: 5869.12
A18: 16 | B18: ▲ | C18: UPVC给水管直接 | D18: 五金材料 | E18: 联塑/日丰/南亚 | F18: DN20,PN16 | G18: 180 | H18: 10 | I18: 50 | J18: 240 | K18: 只 | L18: 1.81 | M18: 325.80 | N18: 18.10 | O18: 90.50 | P18: 434.40
A19: 17 | B19: ▲ | C19: UPVC给水管直接 | D19: 五金材料 | E19: 联塑/日丰/南亚 | F19: DN25,PN16 | G19: 180 | H19: 10 | I19: 50 | J19: 240 | K19: 只 | L19: 1.81 | M19: 325.80 | N19: 18.10 | O19: 90.50 | P19: 434.40
A20: 18 | B20: ▲ | C20: UPVC给水管直接 | D20: 五金材料 | E20: 联塑/日丰/南亚 | F20: DN32,PN16 | G20: 180 | H20: 10 | I20: 50 | J20: 240 | K20: 只 | L20: 1.81 | M20: 325.80 | N20: 18.10 | O20: 90.50 | P20: 434.40
A21: 19 | B21: ▲ | C21: UPVC给水管直接 | D21: 五金材料 | E21: 联塑/日丰/南亚 | F21: DN40,PN16 | G21: 90 | H21: 10 | I21: 50 | J21: 150 | K21: 只 | L21: 2.71 | M21: 243.90 | N21: 27.10 | O21: 135.50 | P21: 406.50
A22: 20 | B22: ▲ | C22: UPVC给水管直接 | D22: 五金材料 | E22: 联塑/日丰/南亚 | F22: DN50,PN16 | G22: 90 | H22: 10 | I22: 50 | J22: 150 | K22: 只 | L22: 3.61 | M22: 324.90 | N22: 36.10 | O22: 180.50 | P22: 541.50
A23: 21 | B23: ▲ | C23: UPVC给水管直接 | D23: 五金材料 | E23: 联塑/日丰/南亚 | F23: DN63,PN16 | G23: 45 | H23: 10 | I23: 50 | J23: 105 | K23: 只 | L23: 4.51 | M23: 202.95 | N23: 45.10 | O23: 225.50 | P23: 473.55
A24: 22 | B24: ▲ | C24: UPVC给水管直接 | D24: 五金材料 | E24: 联塑/日丰/南亚 | F24: DN75,PN16 | G24: 45 | H24: 5 | I24: 5 | J24: 55 | K24: 只 | L24: 7.23 | M24: 325.35 | N24: 36.15 | O24: 36.15 | P24: 397.65
A25: 23 | B25: ▲ | C25: UPVC给水管直接 | D25: 五金材料 | E25: 联塑/日丰/南亚 | F25: DN90,PN16 | G25: 45 | H25: 5 | I25: 5 | J25: 55 | K25: 只 | L25: 10.84 | M25: 487.80 | N25: 54.20 | O25: 54.20 | P25: 596.20
A26: 24 | B26: ▲ | C26: UPVC给水管直接 | D26: 五金材料 | E26: 联塑/日丰/南亚 | F26: DN110,PN16 | G26: 45 | H26: 5 | I26: 5 | J26: 55 | K26: 只 | L26: 18.07 | M26: 813.15 | N26: 90.35 | O26: 90.35 | P26: 993.85
A27: 25 | B27: ▲ | C27: UPVC给水管直接 | D27: 五金材料 | E27: 联塑/日丰/南亚 | F27: DN125,PN16 | G27: 27 | H27: 5 | I27: 5 | J27: 37 | K27: 只 | L27: 29.81 | M27: 804.87 | N27: 149.05 | O27: 149.05 | P27: 1102.97
A28: 26 | B28: ▲ | C28: UPVC给水管直接 | D28: 五金材料 | E28: 联塑/日丰/南亚 | F28: DN140,PN16 | G28: 27 | H28: 5 | I28: 5 | J28: 37 | K28: 只 | L28: 41.56 | M28: 1122.12 | N28: 207.80 | O28: 207.80 | P28: 1537.72
A29: 27 | B29: ▲ | C29: UPVC给水管直接 | D29: 五金材料 | E29: 联塑/日丰/南亚 | F29: DN160,PN16 | G29: 15 | H29: 5 | I29: 5 | J29: 25 | K29: 只 | L29: 50.6 | M29: 759.00 | N29: 253.00 | O29: 253.00 | P29: 1265.00
A30: 28 | B30: ▲ | C30: UPVC给水管直接 | D30: 五金材料 | E30: 联塑/日丰/南亚 | F30: DN200,PN16 | G30: 6 | H30: 2 | I30: 2 | J30: 10 | K30: 只 | L30: 94.87 | M30: 569.22 | N30: 189.74 | O30: 189.74 | P30: 948.70
A31: 29 | B31: ▲ | C31: UPVC给水管直接 | D31: 五金材料 | E31: 联塑/日丰/南亚 | F31: DN225,PN16 | G31: 6 | H31: 2 | I31: 2 | J31: 10 | K31: 只 | L31: 131.01 | M31: 786.06 | N31: 262.02 | O31: 262.02 | P31: 1310.10
A32: 30 | B32: ▲ | C32: UPVC给水管直接 | D32: 五金材料 | E32: 联塑/日丰/南亚 | F32: DN250,PN16 | G32: 6 | H32: 2 | I32: 2 | J32: 10 | K32: 只 | L32: 140.04 | M32: 840.24 | N32: 280.08 | O32: 280.08 | P32: 1400.40
A33: 31 | B33: ▲ | C33: UPVC给水管90°弯头 | D33: 五金材料 | E33: 联塑/日丰/南亚 | F33: DN20,PN16 | G33: 90 | H33: 10 | I33: 50 | J33: 150 | K33: 只 | L33: 1.81 | M33: 162.90 | N33: 18.10 | O33: 90.50 | P33: 271.50
A34: 32 | B34: ▲ | C34: UPVC给水管90°弯头 | D34: 五金材料 | E34: 联塑/日丰/南亚 | F34: DN25,PN16 | G34: 135 | H34: 10 | I34: 50 | J34: 195 | K34: 只 | L34: 1.81 | M34: 244.35 | N34: 18.10 | O34: 90.50 | P34: 352.95
A35: 33 | B35: ▲ | C35: UPVC给水管90°弯头 | D35: 五金材料 | E35: 联塑/日丰/南亚 | F35: DN32,PN16 | G35: 135 | H35: 10 | I35: 50 | J35: 195 | K35: 只 | L35: 2.71 | M35: 365.85 | N35: 27.10 | O35: 135.50 | P35: 528.45
A36: 34 | B36: ▲ | C36: UPVC给水管90°弯头 | D36: 五金材料 | E36: 联塑/日丰/南亚 | F36: DN40,PN16 | G36: 135 | H36: 10 | I36: 50 | J36: 195 | K36: 只 | L36: 3.61 | M36: 487.35 | N36: 36.10 | O36: 180.50 | P36: 703.95
A37: 35 | B37: ▲ | C37: UPVC给水管90°弯头 | D37: 五金材料 | E37: 联塑/日丰/南亚 | F37: DN50,PN16 | G37: 135 | H37: 10 | I37: 50 | J37: 195 | K37: 只 | L37: 5.42 | M37: 731.70 | N37: 54.20 | O37: 271.00 | P37: 1056.90
A38: 36 | B38: ▲ | C38: UPVC给水管90°弯头 | D38: 五金材料 | E38: 联塑/日丰/南亚 | F38: DN63,PN16 | G38: 72 | H38: 10 | I38: 50 | J38: 132 | K38: 只 | L38: 8.13 | M38: 585.36 | N38: 81.30 | O38: 406.50 | P38: 1073.16
A39: 37 | B39: ▲ | C39: UPVC给水管90°弯头 | D39: 五金材料 | E39: 联塑/日丰/南亚 | F39: DN75,PN16 | G39: 45 | H39: 5 | I39: 5 | J39: 55 | K39: 只 | L39: 13.55 | M39: 609.75 | N39: 67.75 | O39: 67.75 | P39: 745.25
A40: 38 | B40: ▲ | C40: UPVC给水管90°弯头 | D40: 五金材料 | E40: 联塑/日丰/南亚 | F40: DN90,PN16 | G40: 27 | H40: 5 | I40: 5 | J40: 37 | K40: 只 | L40: 18.07 | M40: 487.89 | N40: 90.35 | O40: 90.35 | P40: 668.59
A41: 39 | B41: ▲ | C41: UPVC给水管90°弯头 | D41: 五金材料 | E41: 联塑/日丰/南亚 | F41: DN110,PN16 | G41: 18 | H41: 5 | I41: 5 | J41: 28 | K41: 只 | L41: 35.23 | M41: 634.14 | N41: 176.15 | O41: 176.15 | P41: 986.44
A42: 40 | B42: ▲ | C42: UPVC给水管90°弯头 | D42: 五金材料 | E42: 联塑/日丰/南亚 | F42: DN125,PN16 | G42: 9 | H42: 5 | I42: 5 | J42: 19 | K42: 只 | L42: 60.53 | M42: 544.77 | N42: 302.65 | O42: 302.65 | P42: 1150.07
A43: 41 | B43: ▲ | C43: UPVC给水管90°弯头 | D43: 五金材料 | E43: 联塑/日丰/南亚 | F43: DN140,PN16 | G43: 9 | H43: 5 | I43: 5 | J43: 19 | K43: 只 | L43: 91.25 | M43: 821.25 | N43: 456.25 | O43: 456.25 | P43: 1733.75
A44: 42 | B44: ▲ | C44: UPVC给水管90°弯头 | D44: 五金材料 | E44: 联塑/日丰/南亚 | F44: DN160,PN16 | G44: 9 | H44: 5 | I44: 5 | J44: 19 | K44: 只 | L44: 101.2 | M44: 910.80 | N44: 506.00 | O44: 506.00 | P44: 1922.80
A45: 43 | B45: ▲ | C45: UPVC给水管90°弯头 | D45: 五金材料 | E45: 联塑/日丰/南亚 | F45: DN200,PN16 | G45: 9 | H45: 2 | I45: 2 | J45: 13 | K45: 只 | L45: 178.89 | M45: 1610.01 | N45: 357.78 | O45: 357.78 | P45: 2325.57
A46: 44 | B46: ▲ | C46: UPVC给水管90°弯头 | D46: 五金材料 | E46: 联塑/日丰/南亚 | F46: DN225,PN16 | G46: 6 | H46: 2 | I46: 2 | J46: 10 | K46: 只 | L46: 245.75 | M46: 1474.50 | N46: 491.50 | O46: 491.50 | P46: 2457.50
A47: 45 | B47: ▲ | C47: UPVC给水管90°弯头 | D47: 五金材料 | E47: 联塑/日丰/南亚 | F47: DN250,PN16 | G47: 6 | H47: 2 | I47: 2 | J47: 10 | K47: 只 | L47: 256.6 | M47: 1539.60 | N47: 513.20 | O47: 513.20 | P47: 2566.00
A48: 46 | B48: ▲ | C48: UPVC给水管45°弯头 | D48: 五金材料 | E48: 联塑/日丰/南亚 | F48: DN20,PN16 | G48: 15 | H48: 2 | I48: 2 | J48: 19 | K48: 只 | L48: 1.81 | M48: 27.15 | N48: 3.62 | O48: 3.62 | P48: 34.39
A49: 47 | B49: ▲ | C49: UPVC给水管45°弯头 | D49: 五金材料 | E49: 联塑/日丰/南亚 | F49: DN25,PN16 | G49: 15 | H49: 2 | I49: 2 | J49: 19 | K49: 只 | L49: 1.81 | M49: 27.15 | N49: 3.62 | O49: 3.62 | P49: 34.39
A50: 48 | B50: ▲ | C50: UPVC给水管45°弯头 | D50: 五金材料 | E50: 联塑/日丰/南亚 | F50: DN32,PN16 | G50: 15 | H50: 2 | I50: 2 | J50: 19 | K50: 只 | L50: 2.56 | M50: 38.40 | N50: 5.12 | O50: 5.12 | P50: 48.64
A51: 49 | B51: ▲ | C51: UPVC给水管45°弯头 | D51: 五金材料 | E51: 联塑/日丰/南亚 | F51: DN40,PN16 | G51: 15 | H51: 2 | I51: 2 | J51: 19 | K51: 只 | L51: 2.71 | M51: 40.65 | N51: 5.42 | O51: 5.42 | P51: 51.49
A52: 50 | B52: ▲ | C52: UPVC给水管45°弯头 | D52: 五金材料 | E52: 联塑/日丰/南亚 | F52: DN50,PN16 | G52: 15 | H52: 2 | I52: 2 | J52: 19 | K52: 只 | L52: 4.51 | M52: 67.65 | N52: 9.02 | O52: 9.02 | P52: 85.69
A53: 51 | B53: ▲ | C53: UPVC给水管45°弯头 | D53: 五金材料 | E53: 联塑/日丰/南亚 | F53: DN63,PN16 | G53: 9 | H53: 2 | I53: 2 | J53: 13 | K53: 只 | L53: 6.32 | M53: 56.88 | N53: 12.64 | O53: 12.64 | P53: 82.16
A54: 52 | B54: ▲ | C54: UPVC给水管45°弯头 | D54: 五金材料 | E54: 联塑/日丰/南亚 | F54: DN75,PN16 | G54: 9 | H54: 2 | I54: 2 | J54: 13 | K54: 只 | L54: 10.84 | M54: 97.56 | N54: 21.68 | O54: 21.68 | P54: 140.92
A55: 53 | B55: ▲ | C55: UPVC给水管45°弯头 | D55: 五金材料 | E55: 联塑/日丰/南亚 | F55: DN90,PN16 | G55: 9 | H55: 2 | I55: 2 | J55: 13 | K55: 只 | L55: 16.26 | M55: 146.34 | N55: 32.52 | O55: 32.52 | P55: 211.38
A56: 54 | B56: ▲ | C56: UPVC给水管45°弯头 | D56: 五金材料 | E56: 联塑/日丰/南亚 | F56: DN110,PN16 | G56: 9 | H56: 2 | I56: 2 | J56: 13 | K56: 只 | L56: 25.3 | M56: 227.70 | N56: 50.60 | O56: 50.60 | P56: 328.90
A57: 55 | B57: ▲ | C57: UPVC给水管45°弯头 | D57: 五金材料 | E57: 联塑/日丰/南亚 | F57: DN125,PN16 | G57: 4 | H57: 2 | I57: 2 | J57: 8 | K57: 只 | L57: 45.18 | M57: 180.72 | N57: 90.36 | O57: 90.36 | P57: 361.44
A58: 56 | B58: ▲ | C58: UPVC给水管45°弯头 | D58: 五金材料 | E58: 联塑/日丰/南亚 | F58: DN140,PN16 | G58: 4 | H58: 2 | I58: 2 | J58: 8 | K58: 只 | L58: 56.92 | M58: 227.68 | N58: 113.84 | O58: 113.84 | P58: 455.36
A59: 57 | B59: ▲ | C59: UPVC给水管45°弯头 | D59: 五金材料 | E59: 联塑/日丰/南亚 | F59: DN160,PN16 | G59: 4 | H59: 2 | I59: 2 | J59: 8 | K59: 只 | L59: 70.48 | M59: 281.92 | N59: 140.96 | O59: 140.96 | P59: 563.84
A60: 58 | B60: ▲ | C60: UPVC给水管45°弯头 | D60: 五金材料 | E60: 联塑/日丰/南亚 | F60: DN200,PN16 | G60: 3 | H60: 2 | I60: 2 | J60: 7 | K60: 只 | L60: 138.24 | M60: 414.72 | N60: 276.48 | O60: 276.48 | P60: 967.68
A61: 59 | B61: ▲ | C61: UPVC给水管45°弯头 | D61: 五金材料 | E61: 联塑/日丰/南亚 | F61: DN225,PN16 | G61: 3 | H61: 2 | I61: 2 | J61: 7 | K61: 只 | L61: 189.73 | M61: 569.19 | N61: 379.46 | O61: 379.46 | P61: 1328.11
A62: 60 | B62: ▲ | C62: UPVC给水管45°弯头 | D62: 五金材料 | E62: 联塑/日丰/南亚 | F62: DN250,PN16 | G62: 3 | H62: 2 | I62: 2 | J62: 7 | K62: 只 | L62: 193.35 | M62: 580.05 | N62: 386.70 | O62: 386.70 | P62: 1353.45
A63: 61 | B63: ▲ | C63: UPVC给水管正三通 | D63: 五金材料 | E63: 联塑/日丰/南亚 | F63: DN20,PN16 | G63: 90 | H63: 2 | I63: 2 | J63: 94 | K63: 只 | L63: 1.81 | M63: 162.90 | N63: 3.62 | O63: 3.62 | P63: 170.14
A64: 62 | B64: ▲ | C64: UPVC给水管正三通 | D64: 五金材料 | E64: 联塑/日丰/南亚 | F64: DN25,PN16 | G64: 90 | H64: 2 | I64: 2 | J64: 94 | K64: 只 | L64: 2.71 | M64: 243.90 | N64: 5.42 | O64: 5.42 | P64: 254.74
A65: 63 | B65: ▲ | C65: UPVC给水管正三通 | D65: 五金材料 | E65: 联塑/日丰/南亚 | F65: DN32,PN16 | G65: 90 | H65: 2 | I65: 2 | J65: 94 | K65: 只 | L65: 2.71 | M65: 243.90 | N65: 5.42 | O65: 5.42 | P65: 254.74
A66: 64 | B66: ▲ | C66: UPVC给水管正三通 | D66: 五金材料 | E66: 联塑/日丰/南亚 | F66: DN40,PN16 | G66: 90 | H66: 2 | I66: 2 | J66: 94 | K66: 只 | L66: 4.51 | M66: 405.90 | N66: 9.02 | O66: 9.02 | P66: 423.94
A67: 65 | B67: ▲ | C67: UPVC给水管正三通 | D67: 五金材料 | E67: 联塑/日丰/南亚 | F67: DN50,PN16 | G67: 90 | H67: 2 | I67: 2 | J67: 94 | K67: 只 | L67: 7.23 | M67: 650.70 | N67: 14.46 | O67: 14.46 | P67: 679.62
A68: 66 | B68: ▲ | C68: UPVC给水管正三通 | D68: 五金材料 | E68: 联塑/日丰/南亚 | F68: DN63,PN16 | G68: 48 | H68: 2 | I68: 2 | J68: =SUM(G68:I68) -> 52 | K68: 只 | L68: 11.74 | M68: =L68*G68 -> 563.52 | N68: =L68*H68 -> 23.48 | O68: =L68*I68 -> 23.48 | P68: =M68+N68+O68 -> 610.48
A69: 67 | B69: ▲ | C69: UPVC给水管正三通 | D69: 五金材料 | E69: 联塑/日丰/南亚 | F69: DN75,PN16 | G69: 48 | H69: 2 | I69: 2 | J69: 52 | K69: 只 | L69: 17.16 | M69: 823.68 | N69: 34.32 | O69: 34.32 | P69: 892.32
A70: 68 | B70: ▲ | C70: UPVC给水管正三通 | D70: 五金材料 | E70: 联塑/日丰/南亚 | F70: DN90,PN16 | G70: 30 | H70: 2 | I70: 2 | J70: 34 | K70: 只 | L70: 25.3 | M70: 759.00 | N70: 50.60 | O70: 50.60 | P70: 860.20
A71: 69 | B71: ▲ | C71: UPVC给水管正三通 | D71: 五金材料 | E71: 联塑/日丰/南亚 | F71: DN110,PN16 | G71: 30 | H71: 2 | I71: 2 | J71: 34 | K71: 只 | L71: 44.27 | M71: 1328.10 | N71: 88.54 | O71: 88.54 | P71: 1505.18
A72: 70 | B72: ▲ | C72: UPVC给水管正三通 | D72: 五金材料 | E72: 联塑/日丰/南亚 | F72: DN125,PN16 | G72: 12 | H72: 2 | I72: 2 | J72: 16 | K72: 只 | L72: 93.06 | M72: 1116.72 | N72: 186.12 | O72: 186.12 | P72: 1488.96
A73: 71 | B73: ▲ | C73: UPVC给水管正三通 | D73: 五金材料 | E73: 联塑/日丰/南亚 | F73: DN140,PN16 | G73: 9 | H73: 2 | I73: 2 | J73: 13 | K73: 只 | L73: 101.2 | M73: 910.80 | N73: 202.40 | O73: 202.40 | P73: 1315.60
A74: 72 | B74: ▲ | C74: UPVC给水管正三通 | D74: 五金材料 | E74: 联塑/日丰/南亚 | F74: DN160,PN16 | G74: 9 | H74: 2 | I74: 2 | J74: 13 | K74: 只 | L74: 121.07 | M74: 1089.63 | N74: 242.14 | O74: 242.14 | P74: 1573.91
A75: 73 | B75: ▲ | C75: UPVC给水管正三通 | D75: 五金材料 | E75: 联塑/日丰/南亚 | F75: DN200,PN16 | G75: 9 | H75: 2 | I75: 2 | J75: 13 | K75: 只 | L75: 218.65 | M75: 1967.85 | N75: 437.30 | O75: 437.30 | P75: 2842.45
A76: 74 | B76: ▲ | C76: UPVC给水管正三通 | D76: 五金材料 | E76: 联塑/日丰/南亚 | F76: DN225,PN16 | G76: 6 | H76: 2 | I76: 2 | J76: 10 | K76: 只 | L76: 299.06 | M76: 1794.36 | N76: 598.12 | O76: 598.12 | P76: 2990.60
A77: 75 | B77: ▲ | C77: UPVC给水管正三通 | D77: 五金材料 | E77: 联塑/日丰/南亚 | F77: DN250,PN16 | G77: 4 | H77: 2 | I77: 2 | J77: 8 | K77: 只 | L77: 402.96 | M77: 1611.84 | N77: 805.92 | O77: 805.92 | P77: 3223.68
A78: 76 | B78: ▲ | C78: UPVC给水管异径三通 | D78: 五金材料 | E78: 联塑/日丰/南亚 | F78: DN32转DN20，PN16 | G78: 24 | H78: 2 | I78: 2 | J78: 28 | K78: 只 | L78: 2.71 | M78: 65.04 | N78: 5.42 | O78: 5.42 | P78: 75.88
A79: 77 | B79: ▲ | C79: UPVC给水管异径三通 | D79: 五金材料 | E79: 联塑/日丰/南亚 | F79: DN40转DN20，PN16 | G79: 24 | H79: 2 | I79: 2 | J79: 28 | K79: 只 | L79: 3.61 | M79: 86.64 | N79: 7.22 | O79: 7.22 | P79: 101.08
A80: 78 | B80: ▲ | C80: UPVC给水管异径三通 | D80: 五金材料 | E80: 联塑/日丰/南亚 | F80: DN40转DN32，PN17 | G80: 24 | H80: 2 | I80: 2 | J80: 28 | K80: 只 | L80: 3.61 | M80: 86.64 | N80: 7.22 | O80: 7.22 | P80: 101.08
A81: 79 | B81: ▲ | C81: UPVC给水管异径三通 | D81: 五金材料 | E81: 联塑/日丰/南亚 | F81: DN50转DN40，PN16 | G81: 24 | H81: 2 | I81: 2 | J81: 28 | K81: 只 | L81: 6.32 | M81: 151.68 | N81: 12.64 | O81: 12.64 | P81: 176.96
A82: 80 | B82: ▲ | C82: UPVC给水管异径三通 | D82: 五金材料 | E82: 联塑/日丰/南亚 | F82: DN50转DN32，PN16 | G82: 24 | H82: 2 | I82: 2 | J82: 28 | K82: 只 | L82: 5.42 | M82: 130.08 | N82: 10.84 | O82: 10.84 | P82: 151.76
A83: 81 | B83: ▲ | C83: UPVC给水管异径三通 | D83: 五金材料 | E83: 联塑/日丰/南亚 | F83: DN63转DN50，PN16 | G83: 15 | H83: 2 | I83: 2 | J83: 19 | K83: 只 | L83: 9.04 | M83: 135.60 | N83: 18.08 | O83: 18.08 | P83: 171.76
A84: 82 | B84: ▲ | C84: UPVC给水管异径三通 | D84: 五金材料 | E84: 联塑/日丰/南亚 | F84: DN75转DN65，PN16 | G84: 15 | H84: 2 | I84: 2 | J84: 19 | K84: 只 | L84: 15.36 | M84: 230.40 | N84: 30.72 | O84: 30.72 | P84: 291.84
A85: 83 | B85: ▲ | C85: UPVC给水管异径三通 | D85: 五金材料 | E85: 联塑/日丰/南亚 | F85: DN90转DN75，PN16 | G85: 15 | H85: 2 | I85: 2 | J85: 19 | K85: 只 | L85: 21.68 | M85: 325.20 | N85: 43.36 | O85: 43.36 | P85: 411.92
A86: 84 | B86: ▲ | C86: UPVC给水管异径三通 | D86: 五金材料 | E86: 联塑/日丰/南亚 | F86: DN110转DN90，PN16 | G86: 15 | H86: 2 | I86: 2 | J86: 19 | K86: 只 | L86: 37.04 | M86: 555.60 | N86: 74.08 | O86: 74.08 | P86: 703.76
A87: 85 | B87: ▲ | C87: UPVC给水管异径接头 | D87: 五金材料 | E87: 联塑/日丰/南亚 | F87: DN32转DN20，PN16 | G87: 21 | H87: 2 | I87: 2 | J87: 25 | K87: 只 | L87: 1.81 | M87: 38.01 | N87: 3.62 | O87: 3.62 | P87: 45.25
A88: 86 | B88: ▲ | C88: UPVC给水管异径接头 | D88: 五金材料 | E88: 联塑/日丰/南亚 | F88: DN40转DN32，PN16 | G88: 21 | H88: 2 | I88: 2 | J88: 25 | K88: 只 | L88: 1.81 | M88: 38.01 | N88: 3.62 | O88: 3.62 | P88: 45.25
A89: 87 | B89: ▲ | C89: UPVC给水管异径接头 | D89: 五金材料 | E89: 联塑/日丰/南亚 | F89: DN50转DN40，PN16 | G89: 21 | H89: 2 | I89: 2 | J89: 25 | K89: 只 | L89: 3.61 | M89: 75.81 | N89: 7.22 | O89: 7.22 | P89: 90.25
A90: 88 | B90: ▲ | C90: UPVC给水管异径接头 | D90: 五金材料 | E90: 联塑/日丰/南亚 | F90: DN63转DN50，PN16 | G90: 21 | H90: 2 | I90: 2 | J90: 25 | K90: 只 | L90: 5.42 | M90: 113.82 | N90: 10.84 | O90: 10.84 | P90: 135.50
A91: 89 | B91: ▲ | C91: UPVC给水管异径接头 | D91: 五金材料 | E91: 联塑/日丰/南亚 | F91: DN75转DN63，PN16 | G91: 12 | H91: 2 | I91: 2 | J91: 16 | K91: 只 | L91: 7.23 | M91: 86.76 | N91: 14.46 | O91: 14.46 | P91: 115.68
A92: 90 | B92: ▲ | C92: UPVC给水管异径接头 | D92: 五金材料 | E92: 联塑/日丰/南亚 | F92: DN90转DN75，PN16 | G92: 12 | H92: 2 | I92: 2 | J92: 16 | K92: 只 | L92: 10.84 | M92: 130.08 | N92: 21.68 | O92: 21.68 | P92: 173.44
A93: 91 | B93: ▲ | C93: UPVC给水管异径接头 | D93: 五金材料 | E93: 联塑/日丰/南亚 | F93: DN110转DN90，PN16 | G93: 12 | H93: 2 | I93: 2 | J93: 16 | K93: 只 | L93: 16.26 | M93: 195.12 | N93: 32.52 | O93: 32.52 | P93: 260.16
A94: 92 | B94: ▲ | C94: UPVC给水管异径接头 | D94: 五金材料 | E94: 联塑/日丰/南亚 | F94: DN125转DN110，PN16 | G94: 6 | H94: 2 | I94: 2 | J94: 10 | K94: 只 | L94: 37.04 | M94: 222.24 | N94: 74.08 | O94: 74.08 | P94: 370.40
A95: 93 | B95: ▲ | C95: UPVC给水管异径接头 | D95: 五金材料 | E95: 联塑/日丰/南亚 | F95: DN140转DN125，PN16 | G95: 6 | H95: 2 | I95: 2 | J95: 10 | K95: 只 | L95: 47.88 | M95: 287.28 | N95: 95.76 | O95: 95.76 | P95: 478.80
A96: 94 | B96: ▲ | C96: UPVC给水管异径接头 | D96: 五金材料 | E96: 联塑/日丰/南亚 | F96: DN160转DN110，PN16 | G96: 6 | H96: 2 | I96: 2 | J96: 10 | K96: 只 | L96: 48.79 | M96: 292.74 | N96: 97.58 | O96: 97.58 | P96: 487.90
A97: 95 | B97: ▲ | C97: UPVC给水管异径接头 | D97: 五金材料 | E97: 联塑/日丰/南亚 | F97: DN200转DN160，PN16 | G97: 6 | H97: 2 | I97: 2 | J97: 10 | K97: 只 | L97: 93.06 | M97: 558.36 | N97: 186.12 | O97: 186.12 | P97: 930.60
A98: 96 | B98: ▲ | C98: UPVC给水管异径接头 | D98: 五金材料 | E98: 联塑/日丰/南亚 | F98: DN225转DN200，PN16 | G98: 2 | H98: 2 | I98: 2 | J98: 6 | K98: 只 | L98: 162.63 | M98: 325.26 | N98: 325.26 | O98: 325.26 | P98: 975.78
A99: 97 | B99: ▲ | C99: UPVC给水管异径接头 | D99: 五金材料 | E99: 联塑/日丰/南亚 | F99: DN250转DN225，PN16 | G99: 2 | H99: 2 | I99: 2 | J99: 6 | K99: 只 | L99: 218.65 | M99: 437.30 | N99: 437.30 | O99: 437.30 | P99: 1311.90
A100: 98 | B100: ▲ | C100: UPVC带法兰接头 | D100: 五金材料 | E100: 联塑/日丰/南亚 | F100: DN15,PN16 | G100: 10 | H100: 2 | I100: 2 | J100: 14 | K100: 只 | L100: 10.84 | M100: 108.40 | N100: 21.68 | O100: 21.68 | P100: 151.76 | Q100: 2024年新增
A101: 99 | B101: ▲ | C101: UPVC带法兰接头 | D101: 五金材料 | E101: 联塑/日丰/南亚 | F101: DN20,PN16 | G101: 30 | H101: 2 | I101: 2 | J101: 34 | K101: 只 | L101: 10.84 | M101: 325.20 | N101: 21.68 | O101: 21.68 | P101: 368.56
A102: 100 | B102: ▲ | C102: UPVC带法兰接头 | D102: 五金材料 | E102: 联塑/日丰/南亚 | F102: DN25,PN16 | G102: 30 | H102: 2 | I102: 2 | J102: 34 | K102: 只 | L102: 13.55 | M102: 406.50 | N102: 27.10 | O102: 27.10 | P102: 460.70
A103: 101 | B103: ▲ | C103: UPVC带法兰接头 | D103: 五金材料 | E103: 联塑/日丰/南亚 | F103: DN32,PN16 | G103: 30 | H103: 2 | I103: 2 | J103: 34 | K103: 只 | L103: 13.55 | M103: 406.50 | N103: 27.10 | O103: 27.10 | P103: 460.70
A104: 102 | B104: ▲ | C104: UPVC带法兰接头 | D104: 五金材料 | E104: 联塑/日丰/南亚 | F104: DN40,PN16 | G104: 30 | H104: 2 | I104: 2 | J104: 34 | K104: 只 | L104: 18.07 | M104: 542.10 | N104: 36.14 | O104: 36.14 | P104: 614.38
A105: 103 | B105: ▲ | C105: UPVC带法兰接头 | D105: 五金材料 | E105: 联塑/日丰/南亚 | F105: DN50,PN16 | G105: 30 | H105: 2 | I105: 2 | J105: 34 | K105: 只 | L105: 19.88 | M105: 596.40 | N105: 39.76 | O105: 39.76 | P105: 675.92
A106: 104 | B106: ▲ | C106: UPVC带法兰接头 | D106: 五金材料 | E106: 联塑/日丰/南亚 | F106: DN63,PN16 | G106: 42 | H106: 2 | I106: 2 | J106: 46 | K106: 只 | L106: 25.3 | M106: 1062.60 | N106: 50.60 | O106: 50.60 | P106: 1163.80
A107: 105 | B107: ▲ | C107: UPVC带法兰接头 | D107: 五金材料 | E107: 联塑/日丰/南亚 | F107: DN75,PN16 | G107: 42 | H107: 2 | I107: 2 | J107: 46 | K107: 只 | L107: 29.81 | M107: 1252.02 | N107: 59.62 | O107: 59.62 | P107: 1371.26
A108: 106 | B108: ▲ | C108: UPVC带法兰接头 | D108: 五金材料 | E108: 联塑/日丰/南亚 | F108: DN90,PN16 | G108: 42 | H108: 2 | I108: 2 | J108: 46 | K108: 只 | L108: 38.85 | M108: 1631.70 | N108: 77.70 | O108: 77.70 | P108: 1787.10
A109: 107 | B109: ▲ | C109: UPVC带法兰接头 | D109: 五金材料 | E109: 联塑/日丰/南亚 | F109: DN110,PN16 | G109: 18 | H109: 2 | I109: 2 | J109: 22 | K109: 只 | L109: 56.02 | M109: 1008.36 | N109: 112.04 | O109: 112.04 | P109: 1232.44
A110: 108 | B110: ▲ | C110: UPVC带法兰接头 | D110: 五金材料 | E110: 联塑/日丰/南亚 | F110: DN125,PN16 | G110: 12 | H110: 2 | I110: 2 | J110: 16 | K110: 只 | L110: 71.38 | M110: 856.56 | N110: 142.76 | O110: 142.76 | P110: 1142.08
A111: 109 | B111: ▲ | C111: UPVC带法兰接头 | D111: 五金材料 | E111: 联塑/日丰/南亚 | F111: DN140,PN16 | G111: 12 | H111: 2 | I111: 2 | J111: 16 | K111: 只 | L111: 92.16 | M111: 1105.92 | N111: 184.32 | O111: 184.32 | P111: 1474.56
A112: 110 | B112: ▲ | C112: UPVC带法兰接头 | D112: 五金材料 | E112: 联塑/日丰/南亚 | F112: DN160,PN16 | G112: 18 | H112: 2 | I112: 2 | J112: 22 | K112: 只 | L112: 121.97 | M112: 2195.46 | N112: 243.94 | O112: 243.94 | P112: 2683.34
A113: 111 | B113: ▲ | C113: UPVC带法兰接头 | D113: 五金材料 | E113: 联塑/日丰/南亚 | F113: DN200,PN16 | G113: 18 | H113: 2 | I113: 2 | J113: 22 | K113: 只 | L113: 146.37 | M113: 2634.66 | N113: 292.74 | O113: 292.74 | P113: 3220.14
A114: 112 | B114: ▲ | C114: UPVC带法兰接头 | D114: 五金材料 | E114: 联塑/日丰/南亚 | F114: DN225,PN16 | G114: 10 | H114: 2 | I114: 2 | J114: 14 | K114: 只 | L114: 218.65 | M114: 2186.50 | N114: 437.30 | O114: 437.30 | P114: 3061.10
A115: 113 | B115: ▲ | C115: UPVC带法兰接头 | D115: 五金材料 | E115: 联塑/日丰/南亚 | F115: DN250,PN16 | G115: 10 | H115: 2 | I115: 2 | J115: 14 | K115: 只 | L115: 293.64 | M115: 2936.40 | N115: 587.28 | O115: 587.28 | P115: 4110.96
A116: 114 | B116: ▲ | C116: UPVC单外丝接头 | D116: 五金材料 | E116: 联塑/日丰/南亚 | F116: DN20,PN16 | G116: 30 | H116: 2 | I116: 2 | J116: 34 | K116: 只 | L116: 1.81 | M116: 54.30 | N116: 3.62 | O116: 3.62 | P116: 61.54
A117: 115 | B117: ▲ | C117: UPVC单外丝接头 | D117: 五金材料 | E117: 联塑/日丰/南亚 | F117: DN25,PN16 | G117: 30 | H117: 2 | I117: 2 | J117: 34 | K117: 只 | L117: 2.5 | M117: 75.00 | N117: 5.00 | O117: 5.00 | P117: 85.00
A118: 116 | B118: ▲ | C118: UPVC单外丝接头 | D118: 五金材料 | E118: 联塑/日丰/南亚 | F118: DN32,PN16 | G118: 30 | H118: 2 | I118: 2 | J118: 34 | K118: 只 | L118: 1.81 | M118: 54.30 | N118: 3.62 | O118: 3.62 | P118: 61.54
A119: 117 | B119: ▲ | C119: UPVC单外丝接头 | D119: 五金材料 | E119: 联塑/日丰/南亚 | F119: DN40,PN16 | G119: 30 | H119: 2 | I119: 2 | J119: 34 | K119: 只 | L119: 2.71 | M119: 81.30 | N119: 5.42 | O119: 5.42 | P119: 92.14
A120: 118 | B120: ▲ | C120: UPVC单外丝接头 | D120: 五金材料 | E120: 联塑/日丰/南亚 | F120: DN50,PN16 | G120: 30 | H120: 2 | I120: 2 | J120: 34 | K120: 只 | L120: 3.61 | M120: 108.30 | N120: 7.22 | O120: 7.22 | P120: 122.74
A121: 119 | B121: ▲ | C121: UPVC单外丝接头 | D121: 五金材料 | E121: 联塑/日丰/南亚 | F121: DN63,PN16 | G121: 18 | H121: 2 | I121: 2 | J121: 22 | K121: 只 | L121: 6.32 | M121: 113.76 | N121: 12.64 | O121: 12.64 | P121: 139.04
A122: 120 | B122: ▲ | C122: UPVC单外丝接头 | D122: 五金材料 | E122: 联塑/日丰/南亚 | F122: DN75,PN16 | G122: 18 | H122: 2 | I122: 2 | J122: 22 | K122: 只 | L122: 9.94 | M122: 178.92 | N122: 19.88 | O122: 19.88 | P122: 218.68
A123: 121 | B123: ▲ | C123: UPVC单内丝接头 | D123: 五金材料 | E123: 联塑/日丰/南亚 | F123: DN20,PN16 | G123: 30 | H123: 2 | I123: 2 | J123: 34 | K123: 只 | L123: 3.61 | M123: 108.30 | N123: 7.22 | O123: 7.22 | P123: 122.74
A124: 122 | B124: ▲ | C124: UPVC单内丝接头 | D124: 五金材料 | E124: 联塑/日丰/南亚 | F124: DN25,PN16 | G124: 30 | H124: 2 | I124: 2 | J124: 34 | K124: 只 | L124: 5.42 | M124: 162.60 | N124: 10.84 | O124: 10.84 | P124: 184.28
A125: 123 | B125: ▲ | C125: UPVC单内丝接头 | D125: 五金材料 | E125: 联塑/日丰/南亚 | F125: DN32,PN16 | G125: 30 | H125: 2 | I125: 2 | J125: 34 | K125: 只 | L125: 6.32 | M125: 189.60 | N125: 12.64 | O125: 12.64 | P125: 214.88
A126: 124 | B126: ▲ | C126: UPVC单内丝接头 | D126: 五金材料 | E126: 联塑/日丰/南亚 | F126: DN40,PN16 | G126: 30 | H126: 2 | I126: 2 | J126: 34 | K126: 只 | L126: 4.51 | M126: 135.30 | N126: 9.02 | O126: 9.02 | P126: 153.34
A127: 125 | B127: ▲ | C127: UPVC单内丝接头 | D127: 五金材料 | E127: 联塑/日丰/南亚 | F127: DN50,PN16 | G127: 30 | H127: 2 | I127: 2 | J127: 34 | K127: 只 | L127: 5.42 | M127: 162.60 | N127: 10.84 | O127: 10.84 | P127: 184.28
A128: 126 | B128: ▲ | C128: UPVC单内丝接头 | D128: 五金材料 | E128: 联塑/日丰/南亚 | F128: DN63,PN16 | G128: 18 | H128: 2 | I128: 2 | J128: 22 | K128: 只 | L128: 7.23 | M128: 130.14 | N128: 14.46 | O128: 14.46 | P128: 159.06
A129: 127 | B129: ▲ | C129: UPVC单内丝接头 | D129: 五金材料 | E129: 联塑/日丰/南亚 | F129: DN75,PN16 | G129: 18 | H129: 2 | I129: 2 | J129: 22 | K129: 只 | L129: 10.84 | M129: 195.12 | N129: 21.68 | O129: 21.68 | P129: 238.48
A130: 128 | B130: ▲ | C130: UPVC单外丝90°弯头 | D130: 五金材料 | E130: 联塑/日丰/南亚 | F130: DN20,PN16 | G130: 24 | H130: 2 | I130: 2 | J130: 28 | K130: 只 | L130: 5.42 | M130: 130.08 | N130: 10.84 | O130: 10.84 | P130: 151.76
A131: 129 | B131: ▲ | C131: UPVC单外丝90°弯头 | D131: 五金材料 | E131: 联塑/日丰/南亚 | F131: DN25,PN16 | G131: 24 | H131: 2 | I131: 2 | J131: 28 | K131: 只 | L131: 11.74 | M131: 281.76 | N131: 23.48 | O131: 23.48 | P131: 328.72
A132: 130 | B132: ▲ | C132: UPVC单外丝90°弯头 | D132: 五金材料 | E132: 联塑/日丰/南亚 | F132: DN32,PN16 | G132: 24 | H132: 2 | I132: 2 | J132: =SUM(G132:I132) -> 28 | K132: 只 | L132: 13.55 | M132: =L132*G132 -> 325.20 | N132: =L132*H132 -> 27.10 | O132: =L132*I132 -> 27.10 | P132: =M132+N132+O132 -> 379.40
A133: 131 | B133: ▲ | C133: UPVC单外丝90°弯头 | D133: 五金材料 | E133: 联塑/日丰/南亚 | F133: DN40,PN16 | G133: 24 | H133: 2 | I133: 2 | J133: 28 | K133: 只 | L133: 28.91 | M133: 693.84 | N133: 57.82 | O133: 57.82 | P133: 809.48
A134: 132 | B134: ▲ | C134: UPVC单外丝90°弯头 | D134: 五金材料 | E134: 联塑/日丰/南亚 | F134: DN50,PN16 | G134: 18 | H134: 2 | I134: 2 | J134: 22 | K134: 只 | L134: 37.95 | M134: 683.10 | N134: 75.90 | O134: 75.90 | P134: 834.90
A135: 133 | B135: ▲ | C135: UPVC单外丝90°弯头 | D135: 五金材料 | E135: 联塑/日丰/南亚 | F135: DN63,PN16 | G135: 18 | H135: 2 | I135: 2 | J135: 22 | K135: 只 | L135: 54.21 | M135: 975.78 | N135: 108.42 | O135: 108.42 | P135: 1192.62
A136: 134 | B136: ▲ | C136: UPVC单外丝90°弯头 | D136: 五金材料 | E136: 联塑/日丰/南亚 | F136: DN75,PN16 | G136: 18 | H136: 2 | I136: 2 | J136: 22 | K136: 只 | L136: 71.38 | M136: 1284.84 | N136: 142.76 | O136: 142.76 | P136: 1570.36
A137: 135 | B137: ▲ | C137: UPVC单内丝90°弯头 | D137: 五金材料 | E137: 联塑/日丰/南亚 | F137: DN20,PN16 | G137: 24 | H137: 2 | I137: 2 | J137: 28 | K137: 只 | L137: 7.23 | M137: 173.52 | N137: 14.46 | O137: 14.46 | P137: 202.44
A138: 136 | B138: ▲ | C138: UPVC单内丝90°弯头 | D138: 五金材料 | E138: 联塑/日丰/南亚 | F138: DN25,PN16 | G138: 24 | H138: 2 | I138: 2 | J138: 28 | K138: 只 | L138: 9.94 | M138: 238.56 | N138: 19.88 | O138: 19.88 | P138: 278.32
A139: 137 | B139: ▲ | C139: UPVC单内丝90°弯头 | D139: 五金材料 | E139: 联塑/日丰/南亚 | F139: DN32,PN16 | G139: 24 | H139: 2 | I139: 2 | J139: 28 | K139: 只 | L139: 13.55 | M139: 325.20 | N139: 27.10 | O139: 27.10 | P139: 379.40
A140: 138 | B140: ▲ | C140: UPVC单内丝90°弯头 | D140: 五金材料 | E140: 联塑/日丰/南亚 | F140: DN40,PN16 | G140: 24 | H140: 2 | I140: 2 | J140: 28 | K140: 只 | L140: 28.91 | M140: 693.84 | N140: 57.82 | O140: 57.82 | P140: 809.48
A141: 139 | B141: ▲ | C141: UPVC单内丝90°弯头 | D141: 五金材料 | E141: 联塑/日丰/南亚 | F141: DN50,PN16 | G141: 18 | H141: 2 | I141: 2 | J141: 22 | K141: 只 | L141: 37.04 | M141: 666.72 | N141: 74.08 | O141: 74.08 | P141: 814.88
A142: 140 | B142: ▲ | C142: UPVC单内丝90°弯头 | D142: 五金材料 | E142: 联塑/日丰/南亚 | F142: DN63,PN16 | G142: 18 | H142: 2 | I142: 2 | J142: 22 | K142: 只 | L142: 50.6 | M142: 910.80 | N142: 101.20 | O142: 101.20 | P142: 1113.20
A143: 141 | B143: ▲ | C143: UPVC单内丝90°弯头 | D143: 五金材料 | E143: 联塑/日丰/南亚 | F143: DN75,PN16 | G143: 18 | H143: 2 | I143: 2 | J143: 22 | K143: 只 | L143: 68.67 | M143: 1236.06 | N143: 137.34 | O143: 137.34 | P143: 1510.74
A144: 142 | B144: ▲ | C144: UPVC活接 | D144: 五金材料 | E144: 联塑/日丰/南亚 | F144: DN20,PN16 | G144: 30 | H144: 2 | I144: 2 | J144: 34 | K144: 只 | L144: 3.61 | M144: 108.30 | N144: 7.22 | O144: 7.22 | P144: 122.74
A145: 143 | B145: ▲ | C145: UPVC活接 | D145: 五金材料 | E145: 联塑/日丰/南亚 | F145: DN25,PN16 | G145: 30 | H145: 2 | I145: 2 | J145: 34 | K145: 只 | L145: 4.51 | M145: 135.30 | N145: 9.02 | O145: 9.02 | P145: 153.34
A146: 144 | B146: ▲ | C146: UPVC活接 | D146: 五金材料 | E146: 联塑/日丰/南亚 | F146: DN32,PN16 | G146: 30 | H146: 2 | I146: 2 | J146: 34 | K146: 只 | L146: 7.23 | M146: 216.90 | N146: 14.46 | O146: 14.46 | P146: 245.82
A147: 145 | B147: ▲ | C147: UPVC活接 | D147: 五金材料 | E147: 联塑/日丰/南亚 | F147: DN40,PN16 | G147: 30 | H147: 2 | I147: 2 | J147: 34 | K147: 只 | L147: 10.84 | M147: 325.20 | N147: 21.68 | O147: 21.68 | P147: 368.56
A148: 146 | B148: ▲ | C148: UPVC活接 | D148: 五金材料 | E148: 联塑/日丰/南亚 | F148: DN50,PN16 | G148: 30 | H148: 2 | I148: 2 | J148: 34 | K148: 只 | L148: 14.46 | M148: 433.80 | N148: 28.92 | O148: 28.92 | P148: 491.64
A149: 147 | B149: ▲ | C149: UPVC活接 | D149: 五金材料 | E149: 联塑/日丰/南亚 | F149: DN63,PN16 | G149: 30 | H149: 2 | I149: 2 | J149: 34 | K149: 只 | L149: 32.53 | M149: 975.90 | N149: 65.06 | O149: 65.06 | P149: 1106.02
A150: 148 | B150: ▲ | C150: UPVC活接 | D150: 五金材料 | E150: 联塑/日丰/南亚 | F150: DN75,PN16 | G150: 30 | H150: 2 | I150: 2 | J150: 34 | K150: 只 | L150: 42.46 | M150: 1273.80 | N150: 84.92 | O150: 84.92 | P150: 1443.64
A151: 149 | B151: ▲ | C151: UPVC活接 | D151: 五金材料 | E151: 联塑/日丰/南亚 | F151: DN90,PN16 | G151: 30 | H151: 2 | I151: 2 | J151: 34 | K151: 只 | L151: 71.38 | M151: 2141.40 | N151: 142.76 | O151: 142.76 | P151: 2426.92
A152: 150 | B152: ▲ | C152: UPVC活接 | D152: 五金材料 | E152: 联塑/日丰/南亚 | F152: DN110,PN16 | G152: 15 | H152: 2 | I152: 2 | J152: 19 | K152: 只 | L152: 94.87 | M152: 1423.05 | N152: 189.74 | O152: 189.74 | P152: 1802.53
A153: 151 | B153: ▲ | C153: UPVC活接 | D153: 五金材料 | E153: 联塑/日丰/南亚 | F153: DN125,PN16 | G153: 9 | H153: 2 | I153: 2 | J153: 13 | K153: 只 | L153: 92.16 | M153: 829.44 | N153: 184.32 | O153: 184.32 | P153: 1198.08
A154: 152 | B154: ▲ | C154: UPVC补芯 | D154: 五金材料 | E154: 联塑/日丰/南亚 | F154: DN25转DN20 | G154: 24 | H154: 2 | I154: 2 | J154: 28 | K154: 只 | L154: 0.9 | M154: 21.60 | N154: 1.80 | O154: 1.80 | P154: 25.20 | Q154: 2024年新增
A155: 153 | B155: ▲ | C155: UPVC补芯 | D155: 五金材料 | E155: 联塑/日丰/南亚 | F155: DN32转DN25 | G155: 24 | H155: 2 | I155: 2 | J155: 28 | K155: 只 | L155: 0.9 | M155: 21.60 | N155: 1.80 | O155: 1.80 | P155: 25.20
A156: 154 | B156: ▲ | C156: UPVC补芯 | D156: 五金材料 | E156: 联塑/日丰/南亚 | F156: DN40转DN32 | G156: 24 | H156: 2 | I156: 2 | J156: 28 | K156: 只 | L156: 1.81 | M156: 43.44 | N156: 3.62 | O156: 3.62 | P156: 50.68
A157: 155 | B157: ▲ | C157: UPVC补芯 | D157: 五金材料 | E157: 联塑/日丰/南亚 | F157: DN50转DN40 | G157: 24 | H157: 2 | I157: 2 | J157: 28 | K157: 只 | L157: 1.81 | M157: 43.44 | N157: 3.62 | O157: 3.62 | P157: 50.68
A158: 156 | B158: ▲ | C158: UPVC补芯 | D158: 五金材料 | E158: 联塑/日丰/南亚 | F158: DN63转DN50 | G158: 18 | H158: 2 | I158: 2 | J158: 22 | K158: 只 | L158: 4.51 | M158: 81.18 | N158: 9.02 | O158: 9.02 | P158: 99.22
A159: 157 | B159: ▲ | C159: UPVC补芯 | D159: 五金材料 | E159: 联塑/日丰/南亚 | F159: DN75转DN63 | G159: 18 | H159: 2 | I159: 2 | J159: 22 | K159: 只 | L159: 5.42 | M159: 97.56 | N159: 10.84 | O159: 10.84 | P159: 119.24
A160: 158 | B160: ▲ | C160: UPVC补芯 | D160: 五金材料 | E160: 联塑/日丰/南亚 | F160: DN90转DN75 | G160: 18 | H160: 2 | I160: 2 | J160: 22 | K160: 只 | L160: 9.94 | M160: 178.92 | N160: 19.88 | O160: 19.88 | P160: 218.68
A161: 159 | B161: ▲ | C161: UPVC补芯 | D161: 五金材料 | E161: 联塑/日丰/南亚 | F161: DN110转DN90 | G161: 12 | H161: 2 | I161: 2 | J161: 16 | K161: 只 | L161: 16.26 | M161: 195.12 | N161: 32.52 | O161: 32.52 | P161: 260.16
A162: 160 | B162: ▲ | C162: UPVC补芯 | D162: 五金材料 | E162: 联塑/日丰/南亚 | F162: DN125转DN110 | G162: 9 | H162: 2 | I162: 2 | J162: 13 | K162: 只 | L162: 27.11 | M162: 243.99 | N162: 54.22 | O162: 54.22 | P162: 352.43
A163: 161 | B163: ▲ | C163: UPVC补芯 | D163: 五金材料 | E163: 联塑/日丰/南亚 | F163: DN140转DN125 | G163: 9 | H163: 2 | I163: 2 | J163: 13 | K163: 只 | L163: 40.66 | M163: 365.94 | N163: 81.32 | O163: 81.32 | P163: 528.58
A164: 162 | B164: ▲ | C164: UPVC补芯 | D164: 五金材料 | E164: 联塑/日丰/南亚 | F164: DN160转DN140 | G164: 9 | H164: 2 | I164: 2 | J164: 13 | K164: 只 | L164: 46.98 | M164: 422.82 | N164: 93.96 | O164: 93.96 | P164: 610.74
A165: 163 | B165: ▲ | C165: UPVC管帽 | D165: 五金材料 | E165: 联塑/日丰/南亚 | F165: DN20 | G165: 12 | H165: 2 | I165: 2 | J165: 16 | K165: 只 | L165: 1.81 | M165: 21.72 | N165: 3.62 | O165: 3.62 | P165: 28.96 | Q165: 2024年新增
A166: 164 | B166: ▲ | C166: UPVC管帽 | D166: 五金材料 | E166: 联塑/日丰/南亚 | F166: DN25 | G166: 12 | H166: 2 | I166: 2 | J166: 16 | K166: 只 | L166: 1.81 | M166: 21.72 | N166: 3.62 | O166: 3.62 | P166: 28.96 | Q166: 2024年新增
A167: 165 | B167: ▲ | C167: UPVC管帽 | D167: 五金材料 | E167: 联塑/日丰/南亚 | F167: DN32 | G167: 12 | H167: 2 | I167: 2 | J167: 16 | K167: 只 | L167: 1.81 | M167: 21.72 | N167: 3.62 | O167: 3.62 | P167: 28.96
A168: 166 | B168: ▲ | C168: UPVC管帽 | D168: 五金材料 | E168: 联塑/日丰/南亚 | F168: DN40 | G168: 12 | H168: 2 | I168: 2 | J168: 16 | K168: 只 | L168: 1.81 | M168: 21.72 | N168: 3.62 | O168: 3.62 | P168: 28.96
A169: 167 | B169: ▲ | C169: UPVC管帽 | D169: 五金材料 | E169: 联塑/日丰/南亚 | F169: DN50 | G169: 12 | H169: 2 | I169: 2 | J169: 16 | K169: 只 | L169: 2.71 | M169: 32.52 | N169: 5.42 | O169: 5.42 | P169: 43.36
A170: 168 | B170: ▲ | C170: UPVC管帽 | D170: 五金材料 | E170: 联塑/日丰/南亚 | F170: DN63 | G170: 12 | H170: 2 | I170: 2 | J170: 16 | K170: 只 | L170: 4.51 | M170: 54.12 | N170: 9.02 | O170: 9.02 | P170: 72.16
A171: 169 | B171: ▲ | C171: UPVC管帽 | D171: 五金材料 | E171: 联塑/日丰/南亚 | F171: DN75 | G171: 12 | H171: 2 | I171: 2 | J171: 16 | K171: 只 | L171: 8.13 | M171: 97.56 | N171: 16.26 | O171: 16.26 | P171: 130.08
A172: 170 | B172: ▲ | C172: UPVC管帽 | D172: 五金材料 | E172: 联塑/日丰/南亚 | F172: DN90 | G172: 12 | H172: 2 | I172: 2 | J172: 16 | K172: 只 | L172: 12.65 | M172: 151.80 | N172: 25.30 | O172: 25.30 | P172: 202.40
A173: 171 | B173: ▲ | C173: UPVC管帽 | D173: 五金材料 | E173: 联塑/日丰/南亚 | F173: DN110 | G173: 12 | H173: 2 | I173: 2 | J173: 16 | K173: 只 | L173: 18.97 | M173: 227.64 | N173: 37.94 | O173: 37.94 | P173: 303.52
A174: 172 | B174: ▲ | C174: UPVC管帽 | D174: 五金材料 | E174: 联塑/日丰/南亚 | F174: DN125 | G174: 9 | H174: 2 | I174: 2 | J174: 13 | K174: 只 | L174: 25.3 | M174: 227.70 | N174: 50.60 | O174: 50.60 | P174: 328.90
A175: 173 | B175: ▲ | C175: UPVC管帽 | D175: 五金材料 | E175: 联塑/日丰/南亚 | F175: DN140 | G175: 9 | H175: 2 | I175: 2 | J175: 13 | K175: 只 | L175: 28.95 | M175: 260.55 | N175: 57.90 | O175: 57.90 | P175: 376.35
A176: 174 | B176: ▲ | C176: UPVC管帽 | D176: 五金材料 | E176: 联塑/日丰/南亚 | F176: DN160 | G176: 9 | H176: 2 | I176: 2 | J176: 13 | K176: 只 | L176: 49.69 | M176: 447.21 | N176: 99.38 | O176: 99.38 | P176: 645.97
A177: 175 | B177: ▲ | C177: UPVC简单型球阀 | D177: 五金材料 | E177: 联塑/日丰/南亚 | F177: DN20,PN16 | G177: 36 | H177: 2 | I177: 2 | J177: 40 | K177: 只 | L177: 4.51 | M177: 162.36 | N177: 9.02 | O177: 9.02 | P177: 180.40
A178: 176 | B178: ▲ | C178: UPVC简单型球阀 | D178: 五金材料 | E178: 联塑/日丰/南亚 | F178: DN25,PN16 | G178: 36 | H178: 2 | I178: 2 | J178: 40 | K178: 只 | L178: 6.32 | M178: 227.52 | N178: 12.64 | O178: 12.64 | P178: 252.80
A179: 177 | B179: ▲ | C179: UPVC简单型球阀 | D179: 五金材料 | E179: 联塑/日丰/南亚 | F179: DN32,PN16 | G179: 36 | H179: 2 | I179: 2 | J179: 40 | K179: 只 | L179: 9.94 | M179: 357.84 | N179: 19.88 | O179: 19.88 | P179: 397.60
A180: 178 | B180: ▲ | C180: UPVC简单型球阀 | D180: 五金材料 | E180: 联塑/日丰/南亚 | F180: DN40,PN16 | G180: 24 | H180: 2 | I180: 2 | J180: 28 | K180: 只 | L180: 13.55 | M180: 325.20 | N180: 27.10 | O180: 27.10 | P180: 379.40
A181: 179 | B181: ▲ | C181: UPVC简单型球阀 | D181: 五金材料 | E181: 联塑/日丰/南亚 | F181: DN50,PN16 | G181: 24 | H181: 2 | I181: 2 | J181: 28 | K181: 只 | L181: 18.07 | M181: 433.68 | N181: 36.14 | O181: 36.14 | P181: 505.96
A182: 180 | B182: ▲ | C182: UPVC简单型球阀 | D182: 五金材料 | E182: 联塑/日丰/南亚 | F182: DN63,PN16 | G182: 24 | H182: 2 | I182: 2 | J182: 28 | K182: 只 | L182: 28.01 | M182: 672.24 | N182: 56.02 | O182: 56.02 | P182: 784.28
A183: 181 | B183: ▲ | C183: UPVC简单型球阀 | D183: 五金材料 | E183: 联塑/日丰/南亚 | F183: DN75,PN16 | G183: 8 | H183: 2 | I183: 2 | J183: 12 | K183: 只 | L183: 60.53 | M183: 484.24 | N183: 121.06 | O183: 121.06 | P183: 726.36
A184: 182 | B184: ▲ | C184: UPVC简单型球阀 | D184: 五金材料 | E184: 联塑/日丰/南亚 | F184: DN90,PN16 | G184: 12 | H184: 2 | I184: 2 | J184: 16 | K184: 只 | L184: 80.41 | M184: 964.92 | N184: 160.82 | O184: 160.82 | P184: 1286.56
A185: 183 | B185: ▲ | C185: UPVC简单型球阀 | D185: 五金材料 | E185: 联塑/日丰/南亚 | F185: DN110,PN16 | G185: 12 | H185: 2 | I185: 2 | J185: 16 | K185: 只 | L185: 195.16 | M185: 2341.92 | N185: 390.32 | O185: 390.32 | P185: 3122.56
A186: 184 | B186: ▲ | C186: UPVC简单型球阀 | D186: 五金材料 | E186: 联塑/日丰/南亚 | F186: DN125,PN16 | G186: 9 | H186: 2 | I186: 2 | J186: 13 | K186: 只 | L186: 207.81 | M186: 1870.29 | N186: 415.62 | O186: 415.62 | P186: 2701.53
A187: 185 | B187: ▲ | C187: UPVC简单型球阀 | D187: 五金材料 | E187: 联塑/日丰/南亚 | F187: DN140,PN16 | G187: 9 | H187: 2 | I187: 2 | J187: 13 | K187: 只 | L187: 233.1 | M187: 2097.90 | N187: 466.20 | O187: 466.20 | P187: 3030.30
A188: 186 | B188: ▲ | C188: UPVC简单型球阀 | D188: 五金材料 | E188: 联塑/日丰/南亚 | F188: DN160,PN16 | G188: 9 | H188: 2 | I188: 2 | J188: 13 | K188: 只 | L188: 317.13 | M188: 2854.17 | N188: 634.26 | O188: 634.26 | P188: 4122.69
A189: 187 | B189: ▲ | C189: UPVC双由令球阀 | D189: 五金材料 | E189: 联塑/日丰/南亚 | F189: DN20,PN16 | G189: 18 | H189: 2 | I189: 2 | J189: 22 | K189: 只 | L189: 9.04 | M189: 162.72 | N189: 18.08 | O189: 18.08 | P189: 198.88
A190: 188 | B190: ▲ | C190: UPVC双由令球阀 | D190: 五金材料 | E190: 联塑/日丰/南亚 | F190: DN25,PN16 | G190: 18 | H190: 2 | I190: 2 | J190: 22 | K190: 只 | L190: 12.65 | M190: 227.70 | N190: 25.30 | O190: 25.30 | P190: 278.30
A191: 189 | B191: ▲ | C191: UPVC双由令球阀 | D191: 五金材料 | E191: 联塑/日丰/南亚 | F191: DN32,PN16 | G191: 18 | H191: 2 | I191: 2 | J191: 22 | K191: 只 | L191: 17.16 | M191: 308.88 | N191: 34.32 | O191: 34.32 | P191: 377.52
A192: 190 | B192: ▲ | C192: UPVC双由令球阀 | D192: 五金材料 | E192: 联塑/日丰/南亚 | F192: DN40,PN16 | G192: 18 | H192: 2 | I192: 2 | J192: 22 | K192: 只 | L192: 25.3 | M192: 455.40 | N192: 50.60 | O192: 50.60 | P192: 556.60
A193: 191 | B193: ▲ | C193: UPVC双由令球阀 | D193: 五金材料 | E193: 联塑/日丰/南亚 | F193: DN50,PN16 | G193: 18 | H193: 2 | I193: 2 | J193: 22 | K193: 只 | L193: 36.14 | M193: 650.52 | N193: 72.28 | O193: 72.28 | P193: 795.08
A194: 192 | B194: ▲ | C194: UPVC双由令球阀 | D194: 五金材料 | E194: 联塑/日丰/南亚 | F194: DN63,PN16 | G194: 12 | H194: 2 | I194: 2 | J194: 16 | K194: 只 | L194: 58.73 | M194: 704.76 | N194: 117.46 | O194: 117.46 | P194: 939.68
A195: 193 | B195: ▲ | C195: UPVC双由令球阀 | D195: 五金材料 | E195: 联塑/日丰/南亚 | F195: DN75,PN16 | G195: 12 | H195: 2 | I195: 2 | J195: 16 | K195: 只 | L195: 137.33 | M195: 1647.96 | N195: 274.66 | O195: 274.66 | P195: 2197.28
A196: 194 | B196: ▲ | C196: UPVC双由令球阀 | D196: 五金材料 | E196: 联塑/日丰/南亚 | F196: DN90,PN16 | G196: 9 | H196: 2 | I196: 2 | J196: =SUM(G196:I196) -> 13 | K196: 只 | L196: 287.32 | M196: =L196*G196 -> 2585.88 | N196: =L196*H196 -> 574.64 | O196: =L196*I196 -> 574.64 | P196: =M196+N196+O196 -> 3735.16
A197: 195 | B197: ▲ | C197: UPVC双由令球阀 | D197: 五金材料 | E197: 联塑/日丰/南亚 | F197: DN110,PN16 | G197: 8 | H197: 2 | I197: 2 | J197: 12 | K197: 只 | L197: 492.41 | M197: 3939.28 | N197: 984.82 | O197: 984.82 | P197: 5908.92
A198: 196 | B198: ▲ | C198: 黄铜长柄球阀 | D198: 五金材料 | E198: 埃美柯/唐柯/一靓 | F198: DN15,PN16 | G198: 30 | H198: 1 | I198: 1 | J198: 32 | K198: 只 | L198: 28.01 | M198: 840.30 | N198: 28.01 | O198: 28.01 | P198: 896.32
A199: 197 | B199: ▲ | C199: 黄铜长柄球阀 | D199: 五金材料 | E199: 埃美柯/唐柯/一靓 | F199: DN20,PN16 | G199: 30 | H199: 1 | I199: 1 | J199: 32 | K199: 只 | L199: 36.14 | M199: 1084.20 | N199: 36.14 | O199: 36.14 | P199: 1156.48
A200: 198 | B200: ▲ | C200: 黄铜长柄球阀 | D200: 五金材料 | E200: 埃美柯/唐柯/一靓 | F200: DN25,PN16 | G200: 24 | H200: 1 | I200: 1 | J200: 26 | K200: 只 | L200: 57.83 | M200: 1387.92 | N200: 57.83 | O200: 57.83 | P200: 1503.58
... 2018 more rows

Sheet Sheet1
